fUSD/lending_fUSD_20240727
["ID","MTS","AMOUNT","RATE_DAILY","PERIOD"]
[333297647,1722040247921,-503.17,0.00010999,2]
[333297648,1722040247930,-500.0,0.00010999,2]
[333297649,1722040247939,-500.0,0.00010999,2]
[333297650,1722040247949,-500.0,0.00010999,2]
[333297651,1722040247959,-446.02,0.00010999,2]
[333297652,1722040247968,-500.0,0.00010999,2]
[333297653,1722040247978,-500.0,0.00010999,2]
[333297654,1722040247988,-500.0,0.00010999,2]
[333297655,1722040247997,-500.0,0.00010999,2]
[333297656,1722040248006,-500.0,0.00010999,2]
[333297657,1722040248016,-500.0,0.00010999,2]
[333297658,1722040248026,-404.87,0.00010999,2]
[333297659,1722040248242,-500.0,0.00010999,2]
[333297660,1722040248254,-500.0,0.00010999,2]
[333297661,1722040248267,-500.0,0.00010999,2]
[333297662,1722040248278,-500.0,0.00010999,2]
[333297663,1722040248288,-500.0,0.00010999,2]
[333297664,1722040248300,-258.56,0.00010999,2]
[333297665,1722040248311,-500.0,0.00010999,2]
[333297666,1722040248322,-500.0,0.00010999,2]
[333297667,1722040248332,-500.0,0.00010999,2]
[333297668,1722040248343,-500.0,0.00010999,2]
[333297669,1722040248355,-500.0,0.00010999,2]
[333297670,1722040248367,-500.0,0.00010999,2]
[333297671,1722040248377,-500.0,0.00010999,2]
[333297672,1722040248387,-500.0,0.00010999,2]
[333297673,1722040248396,-500.0,0.00010999,2]
[333297674,1722040248408,-500.0,0.00010999,2]
[333297675,1722040248418,-500.0,0.00010999,2]
[333297676,1722040248427,-500.0,0.00010999,2]
[333297677,1722040248438,-500.0,0.00010999,2]
[333297678,1722040248448,-500.0,0.00010999,2]
[333297679,1722040248457,-500.0,0.00010999,2]
[333297680,1722040248467,-500.0,0.00010999,2]
[333297681,1722040248477,-412.53,0.00010999,2]
[333297682,1722040248495,-500.0,0.00010999,2]
[333297683,1722040248507,-500.0,0.00010999,2]
[333297684,1722040248516,-500.0,0.00010999,2]
[333297685,1722040248526,-559.76,0.00010999,2]
[333297686,1722040248536,-500.0,0.00010999,2]
[333297687,1722040248546,-500.0,0.00010999,2]
[333297688,1722040248556,-500.0,0.00010999,2]
[333297689,1722040248566,-500.0,0.00010999,2]
[333297690,1722040248576,-500.0,0.00010999,2]
[333297691,1722040248586,-500.0,0.00010999,2]
[333297692,1722040248596,-500.0,0.00010999,2]
[333297693,1722040248606,-215.57,0.00010999,2]
[333297694,1722040248616,-500.0,0.00010999,2]
[333297695,1722040248626,-500.0,0.00010999,2]
[333297696,1722040248635,-500.0,0.00010999,2]
[333297697,1722040248645,-500.0,0.00010999,2]
[333297698,1722040248655,-500.0,0.00010999,2]
[333297699,1722040248665,-500.0,0.00010999,2]
[333297700,1722040248675,-500.0,0.00010999,2]
[333297701,1722040248684,-500.0,0.00010999,2]
[333297702,1722040248694,-500.0,0.00010999,2]
[333297703,1722040248704,-500.0,0.00010999,2]
[333297704,1722040248713,-500.0,0.00010999,2]
[333297705,1722040248723,-500.0,0.00010999,2]
[333297706,1722040248733,-500.0,0.00010999,2]
[333297707,1722040248743,-500.0,0.00010999,2]
[333297708,1722040248756,-500.0,0.00010999,2]
[333297709,1722040248766,-500.0,0.00010999,2]
[333297710,1722040248776,-500.0,0.00010999,2]
[333297711,1722040248786,-500.0,0.00010999,2]
[333297712,1722040248797,-297.54,0.00010999,2]
[333297713,1722040248808,-500.0,0.00010999,2]
[333297714,1722040248818,-500.0,0.00010999,2]
[333297715,1722040248828,-500.0,0.00010999,2]
[333297716,1722040248838,-500.0,0.00010999,2]
[333297717,1722040248848,-500.0,0.00010999,2]
[333297718,1722040248859,-323.28,0.00010999,2]
[333297719,1722040248868,-500.0,0.00010999,2]
[333297720,1722040248879,-500.0,0.00010999,2]
[333297721,1722040248890,-500.0,0.00010999,2]
[333297722,1722040248903,-545.85,0.00010999,2]
[333297723,1722040248914,-500.0,0.00010999,2]
[333297724,1722040248924,-500.0,0.00010999,2]
[333297725,1722040248935,-500.0,0.00010999,2]
[333297726,1722040248945,-500.0,0.00010999,2]
[333297727,1722040248955,-500.0,0.00010999,2]
[333297728,1722040248967,-500.0,0.00010999,2]
[333297729,1722040248977,-500.0,0.00010999,2]
[333297730,1722040248988,-500.0,0.00010999,2]
[333297731,1722040249001,-506.97,0.00010999,2]
[333297732,1722040249012,-500.0,0.00010999,2]
[333297733,1722040249024,-500.0,0.00010999,2]
[333297734,1722040249036,-500.0,0.00010999,2]
[333297735,1722040249048,-500.0,0.00010999,2]
[333297736,1722040249062,-540.2,0.00010999,2]
[333297737,1722040249075,-791.99,0.00010999,2]
[333297738,1722040249086,-791.99,0.00010999,2]
[333297739,1722040249098,-791.99,0.00010999,2]
[333297740,1722040249108,-791.99,0.00010999,2]
[333297741,1722040249120,-791.99,0.00010999,2]
[333297742,1722040249132,-791.99,0.00010999,2]
[333297743,1722040249145,-791.99,0.00010999,2]
[333297744,1722040249158,-791.99,0.00010999,2]
[333297745,1722040249170,-791.99,0.00010999,2]
[333297746,1722040249183,-791.99,0.00010999,2]
[333297747,1722040249194,-791.99,0.00010999,2]
[333297748,1722040249206,-791.99,0.00010999,2]
[333297749,1722040249218,-791.99,0.00010999,2]
[333297750,1722040249229,-791.99,0.00010999,2]
[333297751,1722040249241,-791.99,0.00010999,2]
[333297752,1722040249254,-791.99,0.00010999,2]
[333297753,1722040249265,-791.99,0.00010999,2]
[333297754,1722040249275,-791.99,0.00010999,2]
[333297755,1722040249286,-791.99,0.00010999,2]
[333297756,1722040249296,-791.99,0.00010999,2]
[333297757,1722040249307,-791.99,0.00010999,2]
[333297758,1722040249317,-791.99,0.00010999,2]
[333297759,1722040249326,-792.08,0.00010999,2]
[333297760,1722040249337,-500.0,0.00010999,2]
[333297761,1722040249349,-500.0,0.00010999,2]
[333297762,1722040249363,-500.0,0.00010999,2]
[333297763,1722040249375,-500.0,0.00010999,2]
[333297764,1722040249387,-500.0,0.00010999,2]
[333297765,1722040249398,-500.0,0.00010999,2]
[333297766,1722040249410,-490.41,0.00010999,2]
[333297767,1722040249422,-500.0,0.00010999,2]
[333297768,1722040249434,-500.0,0.00010999,2]
[333297769,1722040249446,-500.0,0.00010999,2]
[333297770,1722040249457,-500.0,0.00010999,2]
[333297771,1722040249468,-500.0,0.00010999,2]
[333297772,1722040249479,-500.0,0.00010999,2]
[333297773,1722040249490,-500.0,0.00010999,2]
[333297774,1722040249503,-535.15528424,0.00010999,2]
[333297775,1722040249514,-172.17015074,0.00010999,2]
[333297776,1722040249525,-500.0,0.00010999,2]
[333297777,1722040249536,-500.0,0.00010999,2]
[333297778,1722040249547,-500.0,0.00010999,2]
[333297779,1722040249558,-500.0,0.00010999,2]
[333297780,1722040249568,-500.0,0.00010999,2]
[333297781,1722040249579,-274.79,0.00010999,2]
[333297782,1722040249589,-500.0,0.00010999,2]
[333297783,1722040249599,-500.0,0.00010999,2]
[333297784,1722040249610,-500.0,0.00010999,2]
[333297785,1722040249620,-500.0,0.00010999,2]
[333297786,1722040249631,-500.0,0.00010999,2]
[333297787,1722040249641,-500.0,0.00010999,2]
[333297788,1722040249651,-500.0,0.00010999,2]
[333297789,1722040249662,-500.0,0.00010999,2]
[333297790,1722040249673,-500.0,0.00010999,2]
[333297791,1722040249684,-484.03,0.00010999,2]
[333297792,1722040249695,-500.0,0.00010999,2]
[333297793,1722040249706,-500.0,0.00010999,2]
[333297794,1722040249718,-500.0,0.00010999,2]
[333297795,1722040249728,-287.1,0.00010999,2]
[333297796,1722040249739,-500.0,0.00010999,2]
[333297797,1722040249750,-218.59,0.00010999,2]
[333297798,1722040249760,-500.0,0.00010999,2]
[333297799,1722040249771,-500.0,0.00010999,2]
[333297800,1722040249781,-500.0,0.00010999,2]
[333297801,1722040249792,-454.43,0.00010999,2]
[333297802,1722040249802,-500.0,0.00010999,2]
[333297803,1722040249813,-500.0,0.00010999,2]
[333297804,1722040249823,-373.11,0.00010999,2]
[333297805,1722040249832,-500.0,0.00010999,2]
[333297806,1722040249842,-500.0,0.00010999,2]
[333297807,1722040249852,-500.0,0.00010999,2]
[333297808,1722040249862,-500.0,0.00010999,2]
[333297809,1722040249872,-500.0,0.00010999,2]
[333297810,1722040249882,-500.0,0.00010999,2]
[333297811,1722040249892,-347.19,0.00010999,2]
[333297812,1722040249903,-500.0,0.00010999,2]
[333297813,1722040249913,-421.62,0.00010999,2]
[333297814,1722040249923,-500.0,0.00010999,2]
[333297815,1722040249932,-500.0,0.00010999,2]
[333297816,1722040249942,-500.0,0.00010999,2]
[333297818,1722040249952,-500.0,0.00010999,2]
[333297819,1722040249962,-510.72,0.00010999,2]
[333297820,1722040249972,-500.0,0.00010999,2]
[333297821,1722040249982,-392.93,0.00010999,2]
[333297822,1722040249992,-500.0,0.00010999,2]
[333297823,1722040250002,-638.42,0.00010999,2]
[333297824,1722040250012,-500.0,0.00010999,2]
[333297825,1722040250023,-500.0,0.00010999,2]
[333297826,1722040250032,-500.0,0.00010999,2]
[333297827,1722040250042,-500.0,0.00010999,2]
[333297828,1722040250052,-500.0,0.00010999,2]
[333297829,1722040250061,-500.0,0.00010999,2]
[333297830,1722040250071,-500.0,0.00010999,2]
[333297831,1722040250080,-500.0,0.00010999,2]
[333297832,1722040250091,-363.3,0.00010999,2]
[333297833,1722040250100,-500.0,0.00010999,2]
[333297834,1722040250109,-500.0,0.00010999,2]
[333297835,1722040250118,-500.0,0.00010999,2]
[333297836,1722040250129,-642.34,0.00010999,2]
[333297837,1722040250140,-500.0,0.00010999,2]
[333297838,1722040250150,-500.0,0.00010999,2]
[333297839,1722040250159,-500.0,0.00010999,2]
[333297840,1722040250169,-500.0,0.00010999,2]
[333297841,1722040250179,-500.0,0.00010999,2]
[333297842,1722040250189,-500.0,0.00010999,2]
[333297843,1722040250198,-500.0,0.00010999,2]
[333297844,1722040250206,-564.35,0.00010999,2]
[333297845,1722040250215,-500.0,0.00010999,2]
[333297846,1722040250224,-500.0,0.00010999,2]
[333297847,1722040250234,-500.0,0.00010999,2]
[333297848,1722040250243,-647.46,0.00010999,2]
[333297849,1722040250252,-500.0,0.00010999,2]
[333297850,1722040250262,-500.0,0.00010999,2]
[333297851,1722040250271,-500.0,0.00010999,2]
[333297852,1722040250280,-500.0,0.00010999,2]
[333297853,1722040250289,-595.43,0.00010999,2]
[333297854,1722040250298,-500.0,0.00010999,2]
[333297855,1722040250307,-500.0,0.00010999,2]
[333297856,1722040250316,-500.0,0.00010999,2]
[333297857,1722040250326,-500.0,0.00010999,2]
[333297858,1722040250335,-500.0,0.00010999,2]
[333297859,1722040250344,-500.0,0.00010999,2]
[333297860,1722040250355,-500.0,0.00010999,2]
[333297861,1722040250366,-500.0,0.00010999,2]
[333297862,1722040250375,-317.13,0.00010999,2]
[333297863,1722040250385,-500.0,0.00010999,2]
[333297864,1722040250395,-500.0,0.00010999,2]
[333297865,1722040250407,-500.0,0.00010999,2]
[333297866,1722040250417,-500.0,0.00010999,2]
[333297867,1722040250427,-500.0,0.00010999,2]
[333297868,1722040250438,-500.0,0.00010999,2]
[333297869,1722040250447,-500.0,0.00010999,2]
[333297870,1722040250456,-500.0,0.00010999,2]
[333297871,1722040250466,-500.0,0.00010999,2]
[333297872,1722040250475,-500.0,0.00010999,2]
[333297873,1722040250484,-500.0,0.00010999,2]
[333297874,1722040250493,-223.1,0.00010999,2]
[333297875,1722040250502,-500.0,0.00010999,2]
[333297876,1722040250512,-500.0,0.00010999,2]
[333297877,1722040250521,-216.41,0.00010999,2]
[333297878,1722040250532,-500.0,0.00010999,2]
[333297879,1722040250543,-500.0,0.00010999,2]
[333297880,1722040250554,-500.0,0.00010999,2]
[333297881,1722040250563,-500.0,0.00010999,2]
[333297882,1722040250574,-500.0,0.00010999,2]
[333297883,1722040250583,-500.0,0.00010999,2]
[333297884,1722040250593,-500.0,0.00010999,2]
[333297885,1722040250602,-500.0,0.00010999,2]
[333297886,1722040250613,-500.0,0.00010999,2]
[333297887,1722040250622,-500.0,0.00010999,2]
[333297888,1722040250632,-500.0,0.00010999,2]
[333297889,1722040250642,-500.0,0.00010999,2]
[333297890,1722040250652,-500.0,0.00010999,2]
[333297891,1722040250663,-500.0,0.00010999,2]
[333297892,1722040250673,-500.0,0.00010999,2]
[333297893,1722040250683,-500.0,0.00010999,2]
[333297894,1722040250692,-500.0,0.00010999,2]
[333297895,1722040250702,-500.0,0.00010999,2]
[333297896,1722040250712,-500.0,0.00010999,2]
[333297897,1722040250722,-500.0,0.00010999,2]
[333297898,1722040250732,-500.0,0.00010999,2]
[333297899,1722040250745,-500.0,0.00010999,2]
[333297900,1722040250755,-500.0,0.00010999,2]
[333297901,1722040250765,-500.0,0.00010999,2]
[333297902,1722040250775,-500.0,0.00010999,2]
[333297903,1722040250784,-500.0,0.00010999,2]
[333297904,1722040250794,-500.0,0.00010999,2]
[333297905,1722040250804,-500.0,0.00010999,2]
[333297906,1722040250813,-500.0,0.00010999,2]
[333297907,1722040250822,-439.72,0.00010999,2]
[333297908,1722040250832,-500.0,0.00010999,2]
[333297909,1722040250841,-192.87422176,0.00010999,2]
[333297929,1722040950737,150.0,0.00017215,120]
[333297972,1722041250818,150.0,0.00018459,120]
[333297988,1722041432223,-315.09,8.219e-05,2]
[333297989,1722041432233,-512.67,8.219e-05,2]
[333297990,1722041432243,-512.67,9.741e-05,2]
[333297991,1722041432253,-1250.0,0.0001,2]
[333297992,1722041432264,-1000.0,0.00010035,2]
[333297993,1722041432277,-176.55,0.00010076,2]
[333297994,1722041432286,-83.3970889,0.00010115,2]
[333297995,1722041432298,-987.81924358,0.00010115,2]
[333297996,1722041432309,-755.74366752,0.00010115,2]
[333297997,1722041432319,-250.0,0.00010156,2]
[333297998,1722041432328,-174.27,0.0001038,2]
[333297999,1722041432338,-315.09,0.0001048,2]
[333298000,1722041432348,-150.0,0.00010767,2]
[333298001,1722041432357,-758.0,0.00010781,2]
[333298002,1722041432367,-300.0,0.00010799,2]
[333298003,1722041432376,-5639.35397652,0.000108,2]
[333298004,1722041432396,-17136.15896421,0.000108,2]
[333298008,1722041438270,-550.13842932,0.0001079,2]
[333298111,1722041440188,-1950.58610927,0.0001079,2]
[333298112,1722041440203,-1467.29741007,0.0001079,2]
[333298113,1722041440247,-383.57266039,0.0001079,2]
[333298114,1722041440305,-295.58402518,0.0001079,2]
[333298115,1722041440317,-898.91870363,0.0001079,2]
[333298116,1722041440328,-1387.60234637,0.000108,2]
[333298117,1722041442942,-875.6832297,0.000108,2]
[333298119,1722041443118,-508.76,0.000108,2]
[333298120,1722041443132,-772.82854254,0.000108,2]
[333298121,1722041443145,-341.04,0.000108,2]
[333298122,1722041443184,-3310.30765838,0.000108,2]
[333298128,1722041443428,-419.10287483,0.000108,2]
[333298129,1722041443441,-332.28537817,0.000108,2]
[333298143,1722041446119,-8189.13899695,0.000108,2]
[333298144,1722041446130,-1154.51842109,0.0001088,2]
[333298145,1722041446141,-150.0,0.00010897,2]
[333298146,1722041446151,-3774.7923,0.00010898,2]
[333298147,1722041446163,-2500.0,0.00010899,2]
[333298148,1722041446175,-770.188,0.0001091,2]
[333298149,1722041446186,-150.166,0.0001091,2]
[333298150,1722041446197,-151.477,0.0001091,2]
[333298151,1722041446209,-544.05,0.00010996,2]
[333298152,1722041446220,-500.0,0.00010996,2]
[333298153,1722041446231,-157.39505539,0.00010996,2]
[333298154,1722041446242,-510.21652241,0.00010996,2]
[333298155,1722041446253,-544.05,0.00010998,2]
[333298156,1722041446264,-544.05,0.00010998,2]
[333298157,1722041446278,-500.0,0.00010998,2]
[333298158,1722041446289,-418.56960923,0.00010998,2]
[333298159,1722041446716,-81.43039077,0.00010998,2]
[333298160,1722041446727,-202.06414687,0.00010998,2]
[333298161,1722041446741,-741.97,0.00010998,2]
[333298162,1722041446753,-47981.50675402,0.00010998,2]
[333298163,1722041446767,-344.65771857,0.00010998,2]
[333298164,1722041446781,-333.5134452,0.00010998,2]
[333298165,1722041446793,-1712.25832484,0.00010998,2]
[333298166,1722041446806,-1459.03154576,0.00010998,2]
[333298167,1722041446818,-500.0,0.00010998,2]
[333298168,1722041446831,-340.0614,0.00010998,2]
[333298169,1722041446843,-290.05976315,0.00010998,2]
[333298170,1722041446854,-1744.32203037,0.00010998,2]
[333298171,1722041446866,-417.95823573,0.00010998,2]
[333298176,1722041484391,1511.74,0.0001089,90]
[333298177,1722041550760,150.0,0.00015432,120]
[333298178,1722041610717,150.0,0.00017931,120]
[333298202,1722042632232,-410.13,8.219e-05,2]
[333298203,1722042632242,-250.0,9.459e-05,2]
[333298204,1722042632253,-215.42,9.462e-05,2]
[333298205,1722042632263,-300.0,9.466e-05,2]
[333298206,1722042632272,-300.0,9.466e-05,2]
[333298207,1722042632282,-2907.03301081,9.467e-05,2]
[333298208,1722042632295,-481.98854478,9.467e-05,2]
[333298209,1722042632376,-5669.67267634,9.467e-05,2]
[333298210,1722042632391,-941.30576807,9.467e-05,2]
[333298211,1722042632401,-800.0,9.469e-05,2]
[333298212,1722042632411,-2139.85,9.498e-05,2]
[333298213,1722042632421,-200.0,9.556e-05,2]
[333298214,1722042632430,-410.13,9.741e-05,2]
[333298215,1722042632439,-156.97,9.974e-05,2]
[333298216,1722042632449,-156.97,9.976e-05,2]
[333298217,1722042632458,-299.99,9.976e-05,2]
[333298218,1722042632468,-156.97,9.979e-05,2]
[333298219,1722042632477,-1292.91,9.979e-05,2]
[333298220,1722042632487,-644.62,9.979e-05,2]
[333298221,1722042632496,-447.26708814,9.979e-05,2]
[333298222,1722042632507,-52.72291186,9.979e-05,2]
[333298223,1722042632517,-156.97,9.982e-05,2]
[333298224,1722042632526,-156.97,9.984e-05,2]
[333298225,1722042632535,-156.97,9.987e-05,2]
[333298226,1722042632545,-156.07708814,9.99e-05,2]
[333298227,1722042632561,-0.89291186,9.99e-05,2]
[333298228,1722042632570,-156.97,9.992e-05,2]
[333298229,1722042632580,-156.97,9.995e-05,2]
[333298230,1722042632591,-156.97,9.997e-05,2]
[333298231,1722042632599,-156.97,0.0001,2]
[333298232,1722042632609,-156.97,0.00010003,2]
[333298233,1722042632618,-156.97,0.00010005,2]
[333298234,1722042632629,-213.18,0.00010005,2]
[333298235,1722042632641,-156.97,0.00010008,2]
[333298236,1722042632652,-156.97,0.00010011,2]
[333298237,1722042632662,-150.0,0.00010013,2]
[333298238,1722042632671,-156.97,0.00010013,2]
[333298239,1722042632681,-156.97,0.00010016,2]
[333298240,1722042632690,-156.97,0.00010019,2]
[333298241,1722042632700,-156.97,0.00010021,2]
[333298242,1722042632710,-156.97,0.00010024,2]
[333298243,1722042632719,-1667.25,0.00010241,2]
[333298244,1722042632731,-151.08,0.00010278,2]
[333298245,1722042632740,-150.0,0.00010278,2]
[333298246,1722042632749,-150.0,0.00010278,2]
[333298247,1722042632758,-150.0,0.00010378,2]
[333298248,1722042632768,-355.9,0.00010378,2]
[333298249,1722042632778,-150.34,0.00010378,2]
[333298250,1722042632788,-150.0,0.00010378,2]
[333298251,1722042632798,-480.78,0.00010378,2]
[333298252,1722042632807,-530.05,0.00010378,2]
[333298253,1722042632816,-150.0,0.00010378,2]
[333298254,1722042632825,-150.0,0.00010378,2]
[333298255,1722042632835,-530.05,0.00010378,2]
[333298256,1722042632844,-425.61,0.00010378,2]
[333298257,1722042632853,-150.0,0.00010378,2]
[333298258,1722042632863,-355.9,0.00010378,2]
[333298259,1722042632874,-530.05,0.00010378,2]
[333298260,1722042632883,-150.0,0.00010378,2]
[333298261,1722042632894,-355.9,0.00010378,2]
[333298262,1722042632903,-150.0,0.00010378,2]
[333298263,1722042632912,-425.61,0.00010378,2]
[333298264,1722042632921,-150.0,0.00010378,2]
[333298265,1722042632931,-425.61,0.00010378,2]
[333298266,1722042632941,-355.9,0.00010378,2]
[333298267,1722042632950,-529.21,0.00010378,2]
[333298268,1722042632959,-150.0,0.00010378,2]
[333298269,1722042632968,-150.0,0.00010378,2]
[333298270,1722042632976,-150.0,0.00010378,2]
[333298271,1722042632986,-425.61,0.00010378,2]
[333298272,1722042632995,-355.6,0.00010378,2]
[333298273,1722042633005,-420.0,0.00010412,2]
[333298274,1722042633016,-330.24915485,0.00010652,2]
[333298275,1722042633031,-469.75084515,0.00010652,2]
[333298276,1722042633041,-150.0,0.00010727,2]
[333298277,1722042633050,-150.0,0.0001074,2]
[333298278,1722042633059,-200.0,0.00010751,2]
[333298279,1722042633069,-150.0,0.00010765,2]
[333298280,1722042633078,-187.11832577,0.00010774,2]
[333298281,1722042633088,-150.0,0.0001078,2]
[333298282,1722042633097,-259.472,0.0001079,2]
[333298283,1722042633106,-1933.29509923,0.00010794,2]
[333298285,1722042638234,-299.17,8.219e-05,2]
[333298286,1722042638243,-96.68714148,0.00010478,2]
[333298287,1722042638315,-202.48285852,0.00010478,2]
[333298288,1722042638325,-455.69644579,0.00010794,2]
[333298289,1722042638336,-0.49515498,0.00010794,2]
[333298290,1722042638346,-539.6958,0.00010799,2]
[333298291,1722042638356,-1235.0,0.000108,2]
[333298292,1722042638365,-150.0,0.00010807,2]
[333298293,1722042638375,-150.0,0.00010836,2]
[333298294,1722042638384,-150.0,0.00010837,2]
[333298295,1722042638393,-150.0,0.00010858,2]
[333298296,1722042638403,-150.0,0.00010864,2]
[333298297,1722042638412,-410.35709593,0.0001088,2]
[333298298,1722042638424,-1171.64290407,0.0001088,2]
[333298299,1722042638433,-1258.0,0.0001088,2]
[333298300,1722042638443,-150.0,0.00010885,2]
[333298301,1722042638453,-7.21170972,0.0001089,2]
[333298302,1722042638489,-4869.05284405,0.0001089,2]
[333298303,1722042638502,-404.64145571,0.0001089,2]
[333298304,1722042638524,-4186.27582778,0.0001089,2]
[333298305,1722042638561,-688.35,0.0001089,2]
[333298371,1722042640355,-1028.443,0.0001089,2]
[333298372,1722042640367,-11752.3094508,0.0001089,2]
[333298373,1722042640379,-2816.95903306,0.0001089,2]
[333298374,1722042640391,-1459.46820772,0.0001089,2]
[333298375,1722042640438,-1922.42255462,0.0001089,2]
[333298376,1722042640450,-258.26659757,0.0001089,2]
[333298377,1722042640462,-4786.36046934,0.0001089,2]
[333298378,1722042640474,-298.57312534,0.0001089,2]
[333298379,1722042640486,-1765.5,0.0001089,2]
[333298380,1722042640542,-637.70178208,0.0001089,2]
[333298381,1722042640631,-1301.90749695,0.0001089,2]
[333298382,1722042640643,-3343.97506869,0.0001089,2]
[333298383,1722042640735,-25832.49103063,0.0001089,2]
[333298384,1722042640745,-6701.0392,0.00010899,2]
[333298385,1722042640756,-4070.7604,0.00010899,2]
[333298386,1722042640768,-1410.4927,0.00010899,2]
[333298387,1722042640778,-34587.271,0.00010899,2]
[333298388,1722042640787,-177.5368,0.00010899,2]
[333298389,1722042640796,-770.0,0.000109,2]
[333298390,1722042640805,-1168.6,0.000109,2]
[333298391,1722042640814,-200.474,0.0001091,2]
[333298392,1722042640823,-150.0,0.00010967,2]
[333298393,1722042640832,-150.0,0.00010972,2]
[333298394,1722042640842,-150.0,0.00010995,2]
[333298395,1722042640851,-500.0,0.00010998,2]
[333298397,1722042640860,-500.0,0.00010998,2]
[333298399,1722042640869,-500.0,0.00010998,2]
[333298401,1722042640879,-500.0,0.00010998,2]
[333298403,1722042640888,-500.0,0.00010998,2]
[333298405,1722042640897,-509.82,0.00010998,2]
[333298407,1722042640906,-500.0,0.00010998,2]
[333298409,1722042640915,-500.0,0.00010998,2]
[333298411,1722042640924,-500.0,0.00010998,2]
[333298413,1722042640933,-586.03,0.00010998,2]
[333298416,1722042640942,-500.0,0.00010998,2]
[333298418,1722042640951,-500.0,0.00010998,2]
[333298420,1722042640960,-500.0,0.00010998,2]
[333298422,1722042640969,-500.0,0.00010998,2]
[333298424,1722042640978,-500.0,0.00010998,2]
[333298426,1722042640987,-500.0,0.00010998,2]
[333298428,1722042640996,-500.0,0.00010998,2]
[333298430,1722042641007,-502.64092717,0.00010998,2]
[333298432,1722042641017,-641.93238606,0.00010998,2]
[333298434,1722042641026,-500.0,0.00010998,2]
[333298435,1722042641035,-500.0,0.00010998,2]
[333298437,1722042641045,-500.0,0.00010998,2]
[333298439,1722042641054,-500.0,0.00010998,2]
[333298441,1722042641063,-416.0774621,0.00010998,2]
[333298443,1722042641072,-500.0,0.00010998,2]
[333298445,1722042641081,-500.0,0.00010998,2]
[333298447,1722042641091,-500.0,0.00010998,2]
[333298449,1722042641099,-500.0,0.00010998,2]
[333298451,1722042641108,-500.0,0.00010998,2]
[333298453,1722042641118,-500.0,0.00010998,2]
[333298455,1722042641127,-500.0,0.00010998,2]
[333298457,1722042641136,-500.0,0.00010998,2]
[333298459,1722042641145,-500.0,0.00010998,2]
[333298460,1722042641154,-500.0,0.00010998,2]
[333298462,1722042641163,-500.0,0.00010998,2]
[333298464,1722042641171,-500.0,0.00010998,2]
[333298466,1722042641180,-500.0,0.00010998,2]
[333298468,1722042641191,-500.0,0.00010998,2]
[333298470,1722042641201,-500.0,0.00010998,2]
[333298472,1722042641212,-500.0,0.00010998,2]
[333298474,1722042641222,-500.0,0.00010998,2]
[333298476,1722042641232,-500.0,0.00010998,2]
[333298478,1722042641241,-500.0,0.00010998,2]
[333298480,1722042641252,-500.0,0.00010998,2]
[333298482,1722042641265,-500.0,0.00010998,2]
[333298484,1722042641274,-500.0,0.00010998,2]